fUSD/lending_fUSD_20240519
["ID","MTS","AMOUNT","RATE_DAILY","PERIOD"]
[327441814,1716077447784,-6564.04,0.00027397,2]
[327441815,1716077447793,-641.49,0.00027397,2]
[327441816,1716077447802,-4260.91,0.00027397,2]
[327441817,1716077447812,-500.0,0.00027397,2]
[327441818,1716077447822,-500.0,0.00027397,2]
[327441819,1716077447831,-697.34,0.00027397,2]
[327441820,1716077447841,-2763.02,0.00027397,2]
[327441821,1716077447850,-858.1,0.00027397,2]
[327441822,1716077447859,-500.0,0.00027397,2]
[327441823,1716077447869,-500.0,0.00027397,2]
[327441824,1716077447878,-500.0,0.00027397,2]
[327441825,1716077447887,-1870.09,0.00027397,2]
[327441826,1716077447896,-500.0,0.00027397,2]
[327441827,1716077447905,-500.0,0.00027397,2]
[327441828,1716077447915,-500.0,0.00027397,2]
[327441829,1716077447924,-1489.33,0.00027397,2]
[327441830,1716077447933,-500.0,0.00027397,2]
[327441831,1716077447942,-500.0,0.00027397,2]
[327441832,1716077447952,-624.28,0.00027397,2]
[327441833,1716077447961,-1876.67,0.00027397,2]
[327441834,1716077447971,-3030.58,0.00027397,2]
[327441835,1716077447980,-1754.2,0.00027397,2]
[327441836,1716077447990,-500.0,0.00027397,2]
[327441837,1716077448000,-4440.09,0.00027397,2]
[327441838,1716077448009,-500.0,0.00027397,2]
[327441839,1716077448020,-500.0,0.00027397,2]
[327441840,1716077448029,-500.0,0.00027397,2]
[327441841,1716077448038,-500.0,0.00027397,2]
[327441842,1716077448048,-500.0,0.00027397,2]
[327441843,1716077448057,-512.48120065,0.00027397,2]
[327441844,1716077448066,-500.0,0.00027397,2]
[327441845,1716077448077,-919.75,0.00027397,2]
[327441846,1716077448085,-216.75313844,0.00027397,2]
[327441847,1716077448094,-796.81,0.00027397,2]
[327441848,1716077448103,-1492.23,0.00027397,2]
[327441849,1716077448112,-747.95,0.00027397,2]
[327441850,1716077448121,-500.0,0.00027397,2]
[327441851,1716077448130,-4084.75,0.00027397,2]
[327441852,1716077448140,-500.0,0.00027397,2]
[327441853,1716077448149,-759.03,0.00027397,2]
[327441854,1716077448158,-500.0,0.00027397,2]
[327441855,1716077448168,-500.0,0.00027397,2]
[327441856,1716077448177,-500.0,0.00027397,2]
[327441857,1716077448187,-500.0,0.00027397,2]
[327441858,1716077448196,-500.0,0.00027397,2]
[327441859,1716077448205,-500.0,0.00027397,2]
[327441860,1716077448216,-500.0,0.00027397,2]
[327441861,1716077448225,-500.0,0.00027397,2]
[327441862,1716077448234,-500.0,0.00027397,2]
[327441863,1716077448244,-500.0,0.00027397,2]
[327441864,1716077448253,-500.0,0.00027397,2]
[327441865,1716077448262,-500.0,0.00027397,2]
[327441866,1716077448272,-500.0,0.00027397,2]
[327441867,1716077448282,-842.68,0.00027397,2]
[327441868,1716077448291,-500.0,0.00027397,2]
[327441869,1716077448300,-1573.17,0.00027397,2]
[327441870,1716077448310,-500.0,0.00027397,2]
[327441871,1716077448321,-500.0,0.00027397,2]
[327441872,1716077448330,-500.0,0.00027397,2]
[327441873,1716077448340,-500.0,0.00027397,2]
[327441874,1716077448349,-500.0,0.00027397,2]
[327441875,1716077448358,-500.0,0.00027397,2]
[327441876,1716077448367,-1958.77,0.00027397,2]
[327441877,1716077448376,-1661.92,0.00027397,2]
[327441878,1716077448386,-500.0,0.00027397,2]
[327441879,1716077448395,-1716.41,0.00027397,2]
[327441880,1716077448404,-500.0,0.00027397,2]
[327441881,1716077448413,-500.0,0.00027397,2]
[327441882,1716077448422,-500.0,0.00027397,2]
[327441883,1716077448431,-500.0,0.00027397,2]
[327441884,1716077448440,-682.52,0.00027397,2]
[327441885,1716077448450,-612.02,0.00027397,2]
[327441886,1716077448459,-500.0,0.00027397,2]
[327441887,1716077448468,-500.0,0.00027397,2]
[327441888,1716077448477,-500.0,0.00027397,2]
[327441889,1716077448487,-1225.99,0.00027397,2]
[327441890,1716077448496,-691.49,0.00027397,2]
[327441891,1716077448505,-500.0,0.00027397,2]
[327441892,1716077448515,-1815.65,0.00027397,2]
[327441893,1716077448523,-504.06,0.00027397,2]
[327441894,1716077448532,-500.0,0.00027397,2]
[327441895,1716077448541,-2018.48,0.00027397,2]
[327441896,1716077448551,-500.0,0.00027397,2]
[327441897,1716077448560,-1716.75,0.00027397,2]
[327441898,1716077448571,-980.98,0.00027397,2]
[327441899,1716077448580,-908.4,0.00027397,2]
[327441900,1716077448589,-526.40263207,0.00027397,2]
[327441901,1716077448598,-500.0,0.00027397,2]
[327441902,1716077448608,-500.0,0.00027397,2]
[327441903,1716077448617,-500.0,0.00027397,2]
[327441904,1716077448627,-1124.01,0.00027397,2]
[327441905,1716077448636,-2424.02,0.00027397,2]
[327441906,1716077448645,-500.0,0.00027397,2]
[327441907,1716077448654,-500.0,0.00027397,2]
[327441908,1716077448663,-500.0,0.00027397,2]
[327441909,1716077448673,-500.0,0.00027397,2]
[327441910,1716077448686,-1249.4,0.00027397,2]
[327441911,1716077448696,-1936.72,0.00027397,2]
[327441912,1716077448704,-500.0,0.00027397,2]
[327441913,1716077448713,-500.0,0.00027397,2]
[327441914,1716077448724,-525.09249059,0.00027397,2]
[327441915,1716077448733,-500.0,0.00027397,2]
[327441916,1716077448742,-500.0,0.00027397,2]
[327441917,1716077448753,-2316.41,0.00027397,2]
[327441918,1716077448762,-500.0,0.00027397,2]
[327441919,1716077448771,-1024.15,0.00027397,2]
[327441920,1716077448781,-500.0,0.00027397,2]
[327441921,1716077448790,-895.6,0.00027397,2]
[327441922,1716077448800,-515.12197012,0.00027397,2]
[327441923,1716077448810,-500.0,0.00027397,2]
[327441924,1716077448819,-500.0,0.00027397,2]
[327441925,1716077448828,-500.0,0.00027397,2]
[327441926,1716077448837,-709.56,0.00027397,2]
[327441927,1716077448846,-500.0,0.00027397,2]
[327441928,1716077448855,-570.19,0.00027397,2]
[327441929,1716077448865,-1154.19,0.00027397,2]
[327441930,1716077448874,-500.0,0.00027397,2]
[327441931,1716077448883,-1378.01,0.00027397,2]
[327441932,1716077448892,-1873.84,0.00027397,2]
[327441933,1716077448901,-503.15,0.00027397,2]
[327441934,1716077448911,-500.0,0.00027397,2]
[327441935,1716077448920,-500.0,0.00027397,2]
[327441936,1716077448929,-2689.46,0.00027397,2]
[327441937,1716077448938,-500.0,0.00027397,2]
[327441938,1716077448948,-842.94,0.00027397,2]
[327441939,1716077448958,-956.07,0.00027397,2]
[327441940,1716077448967,-500.0,0.00027397,2]
[327441941,1716077448976,-500.0,0.00027397,2]
[327441942,1716077448985,-500.0,0.00027397,2]
[327441943,1716077448994,-500.0,0.00027397,2]
[327441944,1716077449003,-500.0,0.00027397,2]
[327441945,1716077449012,-500.0,0.00027397,2]
[327441946,1716077449023,-1409.03,0.00027397,2]
[327441947,1716077449033,-500.0,0.00027397,2]
[327441948,1716077449043,-1542.92,0.00027397,2]
[327441949,1716077449054,-500.0,0.00027397,2]
[327441950,1716077449063,-633.54,0.00027397,2]
[327441951,1716077449074,-4096.02,0.00027397,2]
[327441952,1716077449082,-500.0,0.00027397,2]
[327441953,1716077449091,-2212.12,0.00027397,2]
[327441954,1716077449101,-500.0,0.00027397,2]
[327441955,1716077449110,-500.0,0.00027397,2]
[327441956,1716077449119,-695.04,0.00027397,2]
[327441957,1716077449128,-232.08354648,0.00027397,2]
[327441958,1716077449137,-1365.15,0.00027397,2]
[327441959,1716077449146,-500.0,0.00027397,2]
[327441960,1716077449156,-500.0,0.00027397,2]
[327441961,1716077449165,-500.0,0.00027397,2]
[327441962,1716077449174,-500.0,0.00027397,2]
[327441963,1716077449183,-1557.76,0.00027397,2]
[327441964,1716077449192,-500.0,0.00027397,2]
[327441965,1716077449201,-4000.0,0.00027397,2]
[327441966,1716077449210,-350.0,0.000274,2]
[327441967,1716077449219,-163.26,0.000274,2]
[327441968,1716077449228,-35191.4502241,0.00027403,2]
[327441969,1716077449238,-157.051909,0.00027448,14]
[327441970,1716077449247,-200.0,0.00027563,15]
[327441971,1716077449259,-153.0,0.00027641,15]
[327441972,1716077449268,-293.0,0.00027641,15]
[327441973,1716077449277,-153.0,0.00027651,15]
[327441974,1716077449288,-150.5,0.00027651,15]
[327441975,1716077449297,-153.0,0.00027661,15]
[327441976,1716077449306,-150.5,0.00027661,15]
[327441977,1716077449315,-562591.54387303,0.00027667,4]
[327441978,1716077449326,-230941.40935862,0.00027667,4]
[327441979,1716077449335,-500.0,0.00027668,2]
[327441980,1716077449344,-500.0,0.00027668,2]
[327441981,1716077449353,-75987.06451368,0.00027669,2]
[327441982,1716077449779,-9890.78103409,0.00027669,2]
[327441983,1716077449806,-500.0,0.00027397,2]
[327441984,1716077449816,-4343.61870921,0.00027669,2]
[327441985,1716077449828,-8569.60155393,0.00027669,2]
[327441986,1716077450051,-3223.7629553,0.00027669,2]
[327441987,1716077450063,-64500.00000001,0.00027669,2]
[327441988,1716077450075,-703.18311744,0.00027669,2]
[327441989,1716077450087,-597.24,0.00027669,2]
[327441990,1716077450099,-556.34975306,0.00027669,2]
[327441991,1716077450110,-1340.01178555,0.00027669,2]
[327441992,1716077450122,-509.16789362,0.00027669,2]
[327441993,1716077450135,-1003.41553186,0.00027669,2]
[327441994,1716077450147,-518.94618326,0.00027669,2]
[327441995,1716077450159,-310.0345829,0.00027669,2]
[327441996,1716077450171,-17092.60688411,0.00027669,2]
[327441997,1716077450182,-785.60753978,0.00027669,2]
[327441998,1716077450193,-3511.99297866,0.00027669,2]
[327441999,1716077450205,-605.98118334,0.00027669,2]
[327442000,1716077450387,-500.0,0.00027397,2]
[327442001,1716077450397,-37115.25989555,0.00027669,2]
[327442002,1716077450406,-500.0,0.0002767,2]
[327442003,1716077450416,-500.0,0.0002767,2]
[327442004,1716077450426,-500.0,0.0002767,2]
[327442005,1716077450435,-500.0,0.00027671,2]
[327442006,1716077450447,-503.96448814,0.00027671,2]
[327442007,1716077450457,-500.0,0.00027671,2]
[327442008,1716077450467,-500.0,0.00027671,2]
[327442009,1716077450476,-500.0,0.00027671,2]
[327442010,1716077450486,-500.0,0.00027671,2]
[327442011,1716077450495,-498.94151593,0.00027671,2]
[327442012,1716077450506,-500.0,0.00027671,2]
[327442013,1716077450517,-500.0,0.00027671,2]
[327442014,1716077450527,-500.0,0.00027671,2]
[327442015,1716077450537,-500.0,0.00027671,2]
[327442016,1716077450547,-500.0,0.00027671,2]
[327442017,1716077450556,-500.0,0.00027671,2]
[327442018,1716077450566,-500.0,0.00027671,2]
[327442019,1716077450578,-500.0,0.00027671,2]
[327442020,1716077450587,-500.0,0.00027671,2]
[327442021,1716077450597,-500.0,0.00027671,2]
[327442022,1716077450607,-500.0,0.00027671,2]
[327442023,1716077450617,-500.0,0.00027671,2]
[327442024,1716077450626,-500.0,0.00027671,2]
[327442025,1716077450637,-181.37,0.00027671,2]
[327442026,1716077450646,-500.0,0.00027671,2]
[327442027,1716077450656,-561.71,0.00027671,2]
[327442028,1716077450666,-511.07,0.00027671,2]
[327442029,1716077450680,-500.0,0.00027671,2]
[327442030,1716077450690,-674.49,0.00027671,2]
[327442031,1716077450700,-702.65,0.00027671,2]
[327442032,1716077450710,-500.0,0.00027671,2]
[327442033,1716077450720,-500.0,0.00027671,2]
[327442034,1716077450730,-500.0,0.00027671,2]
[327442035,1716077450740,-521.27,0.00027671,2]
[327442036,1716077450750,-167.6592809,0.00027671,2]
[327442037,1716077450761,-320.56,0.00027671,2]
[327442038,1716077450771,-500.0,0.00027671,2]
[327442039,1716077450781,-500.0,0.00027671,2]
[327442040,1716077450791,-689.69,0.00027671,2]
[327442041,1716077450800,-500.0,0.00027671,2]
[327442042,1716077450810,-500.0,0.00027671,2]
[327442043,1716077450821,-500.0,0.00027671,2]
[327442044,1716077450831,-500.0,0.00027671,2]
[327442045,1716077450840,-580.84,0.00027671,2]
[327442046,1716077450850,-500.0,0.00027671,2]
[327442047,1716077450859,-500.0,0.00027671,2]
[327442048,1716077450868,-500.0,0.00027671,2]
[327442049,1716077450878,-612.31,0.00027671,2]
[327442050,1716077450888,-500.0,0.00027671,2]
[327442051,1716077450898,-961.14,0.00027671,2]
[327442052,1716077450908,-540.22,0.00027671,2]
[327442053,1716077450917,-500.0,0.00027671,2]
[327442054,1716077450927,-1047.34,0.00027671,2]
[327442055,1716077450936,-500.0,0.00027671,2]
[327442056,1716077450945,-500.0,0.00027671,2]
[327442057,1716077450954,-500.0,0.00027671,2]
[327442058,1716077450964,-507.98322731,0.00027671,2]
[327442059,1716077450974,-500.0,0.00027671,2]
[327442060,1716077450983,-867.44,0.00027671,2]
[327442061,1716077450992,-206.76,0.00027671,2]
[327442062,1716077451002,-500.0,0.00027671,2]
[327442063,1716077451012,-500.0,0.00027671,2]
[327442064,1716077451021,-505.05,0.00027671,2]
[327442065,1716077451030,-500.0,0.00027671,2]
[327442066,1716077451040,-500.0,0.00027671,2]
[327442067,1716077451049,-153.33,0.00027671,2]
[327442068,1716077451058,-500.0,0.00027671,2]
[327442069,1716077451068,-507.50275695,0.00027671,2]
[327442070,1716077451078,-622.54,0.00027671,2]
[327442071,1716077451087,-500.0,0.00027671,2]
[327442072,1716077451097,-500.0,0.00027671,2]
[327442073,1716077451106,-587.86006431,0.00027671,2]
[327442074,1716077451115,-575.74,0.00027671,2]
[327442075,1716077451125,-500.0,0.00027671,2]
[327442076,1716077451134,-500.0,0.00027671,2]
[327442077,1716077451144,-1013.47,0.00027671,2]
[327442078,1716077451153,-500.0,0.00027671,2]
[327442079,1716077451163,-500.0,0.00027671,2]
[327442080,1716077451172,-500.0,0.00027671,2]
[327442081,1716077451181,-500.0,0.00027671,2]
[327442082,1716077451191,-500.0,0.00027671,2]
[327442083,1716077451200,-500.0,0.00027671,2]
[327442084,1716077451210,-500.0,0.00027671,2]
[327442085,1716077451389,-501.04,0.00027671,2]
[327442086,1716077451434,-500.0,0.00027671,2]
[327442087,1716077451443,-500.0,0.00027671,2]
[327442088,1716077451452,-500.0,0.00027671,2]
[327442089,1716077451461,-500.0,0.00027671,2]
[327442090,1716077451471,-570.91,0.00027671,2]
[327442091,1716077451480,-500.0,0.00027671,2]
[327442092,1716077451489,-500.0,0.00027671,2]
[327442093,1716077451498,-500.0,0.00027671,2]
[327442094,1716077451507,-781.67,0.00027671,2]
[327442095,1716077451516,-500.0,0.00027671,2]
[327442096,1716077451525,-500.0,0.00027671,2]
[327442097,1716077451534,-500.0,0.00027671,2]
[327442098,1716077451543,-500.0,0.00027671,2]
[327442099,1716077451554,-500.0,0.00027671,2]
[327442100,1716077451565,-225.68312655,0.00027671,2]
[327442101,1716077451575,-500.0,0.00027671,2]
[327442102,1716077451584,-500.0,0.00027671,2]
[327442103,1716077451593,-500.0,0.00027671,2]
[327442104,1716077451605,-859.88,0.00027671,2]
[327442105,1716077451614,-627.23,0.00027671,2]
[327442106,1716077451625,-644.06,0.00027671,2]
[327442107,1716077451636,-500.0,0.00027671,2]
[327442108,1716077451646,-500.0,0.00027671,2]
[327442109,1716077451655,-500.0,0.00027671,2]
[327442110,1716077451664,-500.0,0.00027671,2]
[327442111,1716077451675,-500.0,0.00027671,2]
[327442112,1716077451687,-500.0,0.00027671,2]
[327442113,1716077451695,-500.0,0.00027671,2]
[327442114,1716077451704,-500.0,0.00027671,2]
[327442115,1716077451715,-500.0,0.00027671,2]
[327442116,1716077451725,-840.81,0.00027671,2]
[327442117,1716077451734,-500.0,0.00027671,2]
[327442118,1716077451744,-500.0,0.00027671,2]
[327442119,1716077451756,-670.91,0.00027671,2]
[327442120,1716077451765,-572.52,0.00027671,2]
[327442121,1716077451774,-500.0,0.00027671,2]
[327442122,1716077451783,-500.0,0.00027671,2]
[327442123,1716077451792,-1271.07,0.00027671,2]
[327442124,1716077451801,-500.0,0.00027671,2]
[327442125,1716077451812,-500.0,0.00027671,2]
[327442126,1716077451822,-500.0,0.00027671,2]
[327442127,1716077451833,-598.75,0.00027671,2]
[327442128,1716077451843,-784.75,0.00027671,2]
[327442129,1716077451852,-524.04,0.00027671,2]
[327442130,1716077451862,-500.0,0.00027671,2]
[327442131,1716077451871,-975.28,0.00027671,2]
[327442132,1716077451880,-1000.0,0.00027671,2]
[327442133,1716077451890,-500.0,0.00027671,2]
[327442134,1716077451899,-500.0,0.00027671,2]
[327442135,1716077451908,-500.0,0.00027671,2]
[327442136,1716077451918,-555.23,0.00027671,2]
[327442137,1716077451928,-1270.09,0.00027671,2]
[327442138,1716077451937,-500.0,0.00027671,2]
[327442139,1716077451946,-500.0,0.00027671,2]
[327442140,1716077451955,-500.0,0.00027671,2]
[327442141,1716077451964,-545.43,0.00027671,2]
[327442142,1716077451973,-567.78,0.00027671,2]
[327442143,1716077451982,-500.0,0.00027671,2]
[327442144,1716077451991,-1095.64,0.00027671,2]
[327442145,1716077452000,-500.0,0.00027671,2]
[327442146,1716077452009,-500.0,0.00027671,2]
[327442147,1716077452019,-585.96,0.00027671,2]
[327442148,1716077452027,-1080.36,0.00027671,2]
[327442149,1716077452037,-609.58,0.00027671,2]
[327442150,1716077452046,-500.0,0.00027671,2]
[327442151,1716077452054,-878.43,0.00027671,2]
[327442152,1716077452063,-500.0,0.00027671,2]
[327442153,1716077452072,-674.73,0.00027671,2]
[327442154,1716077452082,-500.0,0.00027671,2]
[327442155,1716077452090,-524.41,0.00027671,2]
[327442156,1716077452099,-756.34,0.00027671,2]
[327442157,1716077452108,-830.44,0.00027671,2]
[327442158,1716077452117,-598.7,0.00027671,2]
[327442159,1716077452127,-500.0,0.00027671,2]
[327442160,1716077452136,-500.0,0.00027671,2]
[327442161,1716077452145,-500.0,0.00027671,2]
[327442162,1716077452154,-769.97,0.00027671,2]
[327442163,1716077452163,-521.56,0.00027671,2]
[327442164,1716077452173,-654.52,0.00027671,2]
[327442165,1716077452182,-516.15094065,0.00027671,2]
[327442166,1716077452192,-500.0,0.00027671,2]
[327442167,1716077452201,-718.86,0.00027671,2]
[327442168,1716077452210,-500.0,0.00027671,2]
[327442169,1716077452220,-500.0,0.00027671,2]
[327442170,1716077452229,-500.0,0.00027671,2]
[327442171,1716077452238,-762.02,0.00027671,2]
[327442172,1716077452247,-607.12,0.00027671,2]
[327442173,1716077452255,-773.69,0.00027671,2]
[327442174,1716077452265,-500.0,0.00027671,2]
[327442175,1716077452274,-500.0,0.00027671,2]
[327442176,1716077452284,-500.0,0.00027671,2]
[327442177,1716077452294,-227.04353371,0.00027671,2]
[327442178,1716077452303,-500.0,0.00027671,2]
[327442179,1716077452312,-879.32,0.00027671,2]
[327442180,1716077452321,-807.43,0.00027671,2]
[327442181,1716077452331,-500.0,0.00027671,2]
[327442182,1716077452340,-151.0,0.00027671,7]
[327442183,1716077452349,-500.0,0.00027671,2]
[327442184,1716077452358,-500.0,0.00027671,2]
[327442185,1716077452367,-500.0,0.00027671,2]
[327442186,1716077452377,-960.42,0.00027671,2]
[327442187,1716077452387,-500.0,0.00027671,2]
[327442188,1716077452396,-500.0,0.00027671,2]
[327442189,1716077452406,-799.74,0.00027671,2]
[327442190,1716077452416,-500.0,0.00027671,2]
[327442191,1716077452427,-500.0,0.00027671,2]
[327442192,1716077452437,-1421.89,0.00027671,2]
[327442193,1716077452447,-694.7,0.00027671,2]
[327442194,1716077452457,-500.0,0.00027671,2]
[327442195,1716077452466,-500.0,0.00027671,2]
[327442196,1716077452475,-574.3,0.00027671,2]
[327442197,1716077452484,-500.0,0.00027671,2]
[327442198,1716077452493,-500.0,0.00027671,2]
[327442199,1716077452503,-500.0,0.00027671,2]
[327442200,1716077452513,-500.0,0.00027671,2]
[327442201,1716077452524,-748.48,0.00027671,2]
[327442202,1716077452533,-500.0,0.00027671,2]
[327442203,1716077452543,-500.0,0.00027671,2]
[327442204,1716077452553,-780.69,0.00027671,2]
[327442205,1716077452562,-500.0,0.00027671,2]
[327442206,1716077452571,-960.46,0.00027671,2]
[327442207,1716077452581,-500.0,0.00027671,2]
[327442208,1716077452590,-500.0,0.00027671,2]
[327442209,1716077452599,-500.0,0.00027671,2]
[327442210,1716077452608,-500.0,0.00027671,2]
[327442211,1716077452617,-564.47,0.00027671,2]
[327442212,1716077452626,-500.0,0.00027671,2]
[327442213,1716077452635,-500.0,0.00027671,2]
[327442214,1716077452645,-500.0,0.00027671,2]
[327442215,1716077452655,-500.0,0.00027671,2]
[327442216,1716077452664,-500.0,0.00027671,2]
[327442217,1716077452673,-1055.26,0.00027671,2]
[327442218,1716077452687,-500.0,0.00027671,2]
[327442219,1716077452696,-1647.33,0.00027671,2]
[327442220,1716077452705,-500.0,0.00027671,2]
[327442221,1716077452715,-500.0,0.00027671,2]
[327442222,1716077452726,-500.0,0.00027671,2]
[327442223,1716077452735,-500.0,0.00027671,2]
[327442224,1716077452744,-500.0,0.00027671,2]
[327442225,1716077452756,-151.0,0.00027671,7]
[327442226,1716077452766,-151.0,0.00027671,7]
[327442227,1716077452775,-500.0,0.00027671,2]
[327442228,1716077452784,-675.58,0.00027671,2]
[327442229,1716077452793,-500.0,0.00027671,2]
[327442230,1716077452803,-500.0,0.00027671,2]
[327442231,1716077452812,-500.0,0.00027671,2]
[327442232,1716077452821,-500.0,0.00027671,2]
[327442233,1716077452832,-892.52,0.00027671,2]
[327442234,1716077452842,-500.0,0.00027671,2]
[327442235,1716077452851,-270.48139331,0.00027671,2]
[327442236,1716077452860,-500.0,0.00027671,2]
[327442237,1716077452870,-500.0,0.00027671,2]
[327442238,1716077452879,-500.0,0.00027671,2]
[327442239,1716077452888,-696.4,0.00027671,2]
[327442240,1716077452898,-151.0,0.00027671,7]
[327442241,1716077452907,-659.15,0.00027671,2]
[327442242,1716077452916,-975.45,0.00027671,2]
[327442243,1716077452925,-151.0,0.00027671,7]
[327442244,1716077452935,-500.0,0.00027671,2]
[327442245,1716077452945,-500.0,0.00027671,2]
[327442246,1716077452955,-500.0,0.00027671,2]
[327442247,1716077452964,-500.0,0.00027671,2]
[327442248,1716077452973,-500.0,0.00027671,2]
[327442249,1716077452982,-500.0,0.00027671,2]
[327442250,1716077452992,-500.0,0.00027671,2]
[327442251,1716077453001,-500.0,0.00027671,2]
[327442252,1716077453011,-515.8029076,0.00027671,2]
[327442253,1716077453021,-500.0,0.00027671,2]
[327442254,1716077453030,-500.0,0.00027671,2]
[327442255,1716077453040,-500.0,0.00027671,2]
[327442256,1716077453051,-500.0,0.00027671,2]
[327442257,1716077453060,-151.0,0.00027671,7]
[327442258,1716077453071,-500.0,0.00027671,2]
[327442259,1716077453081,-500.0,0.00027671,2]
[327442260,1716077453091,-151.0,0.00027671,7]
[327442261,1716077453100,-500.0,0.00027671,2]
[327442262,1716077453109,-500.0,0.00027671,2]
[327442263,1716077453118,-667.44,0.00027671,2]
[327442264,1716077453128,-500.0,0.00027671,2]
[327442265,1716077453138,-500.0,0.00027671,2]
[327442266,1716077453147,-500.0,0.00027671,2]
[327442267,1716077453157,-500.0,0.00027671,2]
[327442268,1716077453166,-500.0,0.00027671,2]
[327442269,1716077453175,-500.0,0.00027671,2]
[327442270,1716077453185,-151.0,0.00027671,7]
[327442271,1716077453194,-500.0,0.00027671,2]
[327442272,1716077453203,-619.54,0.00027671,2]
[327442273,1716077453213,-500.0,0.00027671,2]
[327442274,1716077453222,-151.0,0.00027671,7]
[327442275,1716077453236,-849.47,0.00027671,2]
[327442276,1716077453245,-690.93,0.00027671,2]
[327442277,1716077453255,-500.0,0.00027671,2]
[327442278,1716077453265,-500.0,0.00027671,2]
[327442279,1716077453274,-500.0,0.00027671,2]
[327442280,1716077453283,-151.0,0.00027671,7]
[327442281,1716077453293,-902.26,0.00027671,2]
[327442282,1716077453302,-500.0,0.00027671,2]
[327442283,1716077453311,-500.0,0.00027671,2]
[327442284,1716077453321,-500.0,0.00027671,2]
[327442285,1716077453330,-500.0,0.00027671,2]
[327442286,1716077453339,-500.0,0.00027671,2]
[327442287,1716077453348,-500.0,0.00027671,2]
[327442288,1716077453357,-855.55,0.00027671,2]
[327442289,1716077453366,-151.0,0.00027671,7]
[327442290,1716077453376,-500.0,0.00027671,2]
[327442291,1716077453385,-500.0,0.00027671,2]
[327442292,1716077453394,-500.0,0.00027671,2]
[327442293,1716077453404,-1068.89,0.00027671,2]
[327442294,1716077453413,-1577.42,0.00027671,2]
[327442295,1716077453423,-500.0,0.00027671,2]
[327442296,1716077453432,-500.0,0.00027671,2]
[327442297,1716077453441,-500.0,0.00027671,2]
[327442298,1716077453451,-500.0,0.00027671,2]
[327442299,1716077453460,-500.0,0.00027671,2]
[327442300,1716077453469,-820.23,0.00027671,2]
[327442301,1716077453478,-508.23,0.00027671,2]
[327442302,1716077453487,-500.0,0.00027671,2]
[327442303,1716077453497,-152.627299,0.00027671,7]
[327442304,1716077453506,-500.0,0.00027671,2]
[327442305,1716077453516,-500.0,0.00027671,2]
[327442306,1716077453526,-609.88,0.00027671,2]
[327442307,1716077453535,-500.0,0.00027671,2]
[327442308,1716077453544,-500.0,0.00027671,2]
[327442309,1716077453553,-500.0,0.00027671,2]
[327442310,1716077453563,-765.81,0.00027671,2]
[327442311,1716077453572,-151.0,0.00027671,7]
[327442312,1716077453582,-500.0,0.00027671,2]
[327442313,1716077453591,-500.0,0.00027671,2]